bitfinex/quotes_ETHUSD_20250413
["timestamp","ask_amount","ask_price","bid_price","bid_amount"]
[1744563780246,0.02,1595.4,1595.2,7.08894]
[1744563780555,0.02,1595.4,1595.3,6.26841]
[1744563780854,6.28805,1595.4,1595.2,1.335805]
[1744563781025,6.28805,1595.4,1595.1,7.08941]
[1744563781225,0.02,1595.4,1595.1,7.08941]
[1744563781937,6.28802,1595.4,1595.1,13.35848]
[1744563782156,0.02,1595.4,1595.1,13.35848]
[1744563782527,0.02,1595.4,1595.2,6.26879]
[1744563782727,0.02,1595.4,1595.1,7.08937]
[1744563782928,0.02,1595.4,1595.1,14.69429]
[1744563783129,0.02,1595.4,1595.2,6.26863]
[1744563784476,0.02,1595.4,1595.1,8.42529]
[1744563784662,0.02,1595.4,1595.1,8.42526]
[1744563784964,6.28804,1595.4,1595.1,13.35844]
[1744563785139,6.28804,1595.4,1595.1,13.35842]
[1744563785341,0.02,1595.4,1595.1,7.08935]
[1744563785552,0.02,1595.4,1595.2,6.26866]
[1744563786651,0.02,1595.4,1595.2,12.53735]
[1744563786852,0.02,1595.4,1595.2,6.26866]
[1744563787567,0.02,1595.4,1595.2,13.246226]
[1744563790971,0.02,1595.4,1595.2,6.26866]
[1744563791175,6.28803,1595.4,1595.1,13.3584]
[1744563791472,6.28803,1595.4,1595.1,7.08935]
[1744563791982,12.55629,1595.4,1595.0,13.3041]
[1744563792271,7.09672,1595.3,1595.0,6.26947]
[1744563792572,7.09672,1595.3,1595.0,12.53895]
[1744563792734,7.09672,1595.3,1595.0,6.26947]
[1744563792940,8.435195,1595.3,1595.0,6.26947]
[1744563793592,8.435195,1595.3,1595.0,12.53894]
[1744563793899,14.703775,1595.3,1595.0,6.26947]
[1744563794191,14.703775,1595.3,1594.7,6.27061]
[1744563794192,13.36719,1595.1,1594.7,6.27061]
[1744563794489,6.26962,1595.0,1594.7,6.27061]
[1744563794657,12.5394,1595.0,1594.6,19.6242]
[1744563795194,7.46833814,1595.2,1594.6,6.2711]
[1744563795195,7.09831,1594.9,1594.6,6.2711]
[1744563795359,13.3685,1594.9,1594.6,6.2711]
[1744563795561,7.09831,1594.9,1594.6,6.2711]
[1744563796697,7.09831,1594.9,1594.6,12.54209]
[1744563796856,7.09831,1594.9,1594.6,6.27099]
[1744563797492,8.435108,1594.9,1594.5,6.27145]
[1744563797690,8.435108,1594.9,1594.3,13.35221]
[1744563797691,6.27089,1594.7,1594.3,13.35221]
[1744563798405,0.8283,1594.8,1594.3,7.08]
[1744563798698,0.8283,1594.8,1594.5,6.27119]
[1744563798890,0.8283,1594.8,1594.6,6.2711]
[1744563800000,0.8283,1594.8,1594.5,6.27119]
[1744563800174,7.09868,1594.8,1594.5,6.27119]
[1744563800700,0.8283,1594.8,1594.6,6.27097]
[1744563804708,0.8283,1594.8,1594.5,12.54296]
[1744563807107,0.8283,1594.8,1594.6,6.27103]
[1744563807810,0.8283,1594.8,1594.6,12.54203]
[1744563808178,12.43969,1595.0,1594.6,2.068203]
[1744563808179,6.17,1595.0,1594.6,2.068203]
[1744563808505,6.17,1595.0,1594.9,6.26998]
[1744563808678,0.8075,1595.1,1594.9,6.26998]
[1744563808878,7.07685,1595.1,1594.7,6.27071]
[1744563809086,7.07685,1595.1,1594.7,12.54142]
[1744563809087,6.26973,1595.0,1594.7,12.54142]
[1744563809592,0.8075,1595.1,1594.8,6.27011]
[1744563809798,0.8075,1595.1,1594.9,6.26996]
[1744563810609,7.07674,1595.1,1594.8,6.27011]
[1744563811919,7.07674,1595.1,1594.8,12.54035]
[1744563812306,7.07674,1595.1,1594.8,6.27011]
[1744563812513,14.680694,1595.1,1594.8,6.27011]
[1744563812822,0.7862,1595.0,1594.8,6.27011]
[1744563813003,0.7862,1595.0,1594.5,9.27153]
[1744563813004,0.7862,1594.8,1594.5,6.2714]
[1744563813378,0.7862,1594.8,1594.5,12.54281]
[1744563813695,7.05588,1595.0,1594.7,6.27077]
[1744563813872,12.53944,1595.0,1594.6,6.27098]
[1744563814079,0.7862,1594.9,1594.6,6.27098]
[1744563814999,6.9562,1595.5,1595.0,0.7956]
[1744563815312,6.9562,1595.5,1595.1,6.33187924]
[1744563815313,0.02,1595.4,1595.1,6.33187924]
[1744563815479,6.28816,1595.4,1595.0,7.06516]
[1744563815676,0.7862,1595.3,1595.0,12.53895]
[1744563815907,0.7862,1595.3,1595.1,12.53815]
[1744563816304,0.835,1595.4,1595.2,6.2688]
[1744563823414,0.835,1595.4,1595.2,12.53747]
[1744563823595,0.02,1595.4,1595.3,6.26841]
[1744563825010,0.02,1595.4,1595.2,12.53733]
[1744563825217,0.02,1595.4,1595.2,6.26866]
[1744563825718,0.02,1595.4,1595.2,12.53731]
[1744563826288,0.02,1595.4,1595.3,6.26841]
[1744563826915,0.02,1595.4,1595.2,6.26865]
[1744563827587,0.726908,1595.4,1595.2,6.26865]
[1744563827986,0.02,1595.4,1595.2,6.33134043]
[1744563828189,0.02,1595.4,1595.3,7.0908895]
[1744563828393,0.02,1595.4,1595.3,7.02821]
[1744563828786,0.02,1595.4,1595.3,7.2817804]
[1744563829601,0.02,1595.4,1595.3,10.80692408]
[1744563829844,0.02,1595.4,1595.3,13.52945171]
[1744563832205,0.02,1595.4,1595.3,10.06697162]
[1744563832850,0.02,1595.4,1595.3,9.87608007]
[1744563833019,0.02,1595.4,1595.3,9.81340122]
[1744563833225,0.02,1595.4,1595.3,9.87608002]
[1744563833857,0.02,1595.4,1595.3,9.81340122]
[1744563836357,0.02,1595.4,1595.3,14.3444112]
[1744563836657,0.02,1595.4,1595.3,14.53484551]
[1744563837945,0.02,1595.4,1595.3,10.06650737]
[1744563838246,0.02,1595.4,1595.3,10.12917519]
[1744563838406,0.02,1595.4,1595.3,14.59751333]
[1744563838612,0.02,1595.4,1595.3,14.53484551]
[1744563840042,0.02,1595.4,1595.3,17.53484551]
[1744563840447,1e-05,1595.4,1595.3,18.08484551]
[1744563840647,0.3964526,1596.0,1595.9,6.26605]
[1744563840847,0.3964526,1596.0,1595.9,12.14439314]
[1744563841014,0.3964526,1596.0,1595.9,7.73869553]
[1744563841216,0.3964526,1596.0,1595.9,6.892655]
[1744563841460,0.3964526,1596.0,1595.9,8.0351129]
[1744563841761,0.3964526,1596.0,1595.9,7.719355]
[1744563842741,0.3964526,1596.0,1595.9,12.25034298]
[1744563842920,0.3964526,1596.0,1595.9,12.50306014]
[1744563843862,2.6e-06,1596.0,1595.9,16.05306014]
[1744563844017,2.6e-06,1596.0,1595.9,15.9904103]
[1744563844217,2.6e-06,1596.0,1595.9,22.60989701]
[1744563844542,0.02,1596.4,1596.3,10.09118]
[1744563844745,0.02,1596.4,1596.3,22.55773541]
[1744563844947,0.02,1596.4,1596.3,23.04510614]
[1744563845148,1e-05,1596.4,1596.3,23.04510614]
[1744563845349,0.7731,1597.1,1596.9,6.26176]
[1744563845524,0.7731,1597.1,1596.9,12.5236]
[1744563845718,0.7731,1597.1,1597.0,6.26174]
[1744563845927,1.90277485,1597.1,1597.0,6.26174]
[1744563846266,1.90277485,1597.1,1596.9,6.26176]
[1744563846564,0.7731,1597.1,1596.9,12.52371]
[1744563847442,0.7731,1597.1,1596.9,6.26176]
[1744563849669,0.7731,1597.1,1597.0,6.26174]
[1744563849874,0.7731,1597.1,1596.9,6.26176]
[1744563850172,0.7731,1597.1,1596.7,6.26285]
[1744563850466,6.26204,1597.0,1596.6,12.5263]
[1744563850667,7.591691,1597.0,1596.7,6.2629]
[1744563850868,1.329651,1597.0,1596.7,6.26274]
[1744563851071,10.72913814,1597.3,1596.4,6.26403]
[1744563851072,0.7816,1597.3,1596.8,0.86042364]
[1744563851246,0.7816,1597.3,1597.0,6.26173]
[1744563851453,0.7816,1597.3,1596.9,6.26209]
[1744563851454,7.04231,1597.3,1596.9,6.26209]
[1744563851663,13.30316,1597.3,1596.9,6.26209]
[1744563851969,0.7816,1597.1,1596.8,6.2625]
[1744563852177,0.7816,1597.1,1596.8,6.26233]
[1744563852359,0.7816,1597.1,1596.9,6.26211]
[1744563852747,0.7816,1597.1,1596.8,12.52496]
[1744563853073,0.7816,1597.3,1597.0,6.2615]
[1744563853574,7.0428,1597.2,1596.8,6.2625]
[1744563853754,0.70428,1597.1,1596.8,6.2625]
[1744563854772,0.70428,1597.1,1596.9,6.26199]
[1744563854975,0.7816,1597.2,1596.9,6.26199]
[1744563855180,0.7816,1597.2,1596.9,12.52382]
[1744563855558,0.7816,1597.2,1596.9,6.26183]
[1744563855746,7.04256,1597.2,1596.9,6.26183]
[1744563856250,0.7816,1597.2,1596.9,6.26183]
[1744563856450,1.48582,1597.2,1596.9,6.26183]
[1744563856650,1.48582,1597.2,1596.8,6.2625]
[1744563856880,7.043,1597.1,1596.7,6.26288]
[1744563857184,7.043,1597.1,1596.7,6.26275]
[1744563857572,7.043,1597.1,1596.8,6.26249]
[1744563858680,0.7816,1597.1,1596.8,12.52481]
[1744563858869,0.7816,1597.1,1596.8,6.26232]
[1744563859068,0.7816,1597.1,1596.9,6.26199]
[1744563859386,1.48936,1597.1,1596.8,6.26232]
[1744563859552,1.48936,1597.1,1596.8,12.5247]
[1744563860383,1.48936,1597.1,1596.9,6.26194]
[1744563860786,0.7816,1597.1,1596.9,12.52392]
[1744563861081,0.7816,1597.1,1596.9,6.26194]
[1744563861496,0.7816,1597.1,1596.9,12.52386]
[1744563862884,3.7816,1597.3,1597.0,6.26157]
[1744563863087,10.04231,1597.3,1597.0,6.26157]
[1744563863289,1.004231,1597.2,1597.0,6.26157]
[1744563863691,0.7816,1597.1,1596.8,6.26249]
[1744563863991,6.26225,1596.9,1596.4,0.7978]
[1744563864294,0.7816,1596.8,1596.5,12.52706]
[1744563864495,1.407825,1596.8,1596.5,12.52706]
[1744563865068,1.407825,1596.8,1596.5,6.2635]
[1744563865262,7.670385,1596.8,1596.5,6.2635]
[1744563865894,0.7816,1596.7,1596.2,6.26473]
[1744563866197,12.527,1596.6,1596.2,12.52947]
[1744563866367,7.59434,1596.6,1596.2,12.52947]
[1744563866568,7.59434,1596.6,1596.3,6.26446]
[1744563866771,7.04458,1596.7,1596.3,6.26446]
[1744563867489,7.04458,1596.7,1596.4,6.26408]
[1744563867981,13.3077,1596.7,1596.4,6.26408]
[1744563868186,6.26382,1596.5,1596.2,6.26485]
[1744563868607,0.8004,1596.4,1596.2,6.26485]
[1744563869112,6.17,1596.9,1596.4,6.26409]
[1744563869113,0.8004,1596.9,1596.4,6.26409]
[1744563869297,0.8004,1596.9,1596.7,6.26259]
[1744563869497,0.8004,1596.9,1596.6,12.52633]
[1744563869702,0.8004,1596.9,1596.7,6.26289]
[1744563869896,3.0,1597.0,1596.8,6.26252]
[1744563870214,7.0954,1597.1,1596.8,12.52489]
[1744563871089,15.0928551,1597.1,1596.7,6.2628]
[1744563871283,8.8314651,1597.1,1596.8,12.52484]
[1744563871479,8.8314651,1597.1,1596.8,6.26239]
[1744563872423,15.0928151,1597.1,1596.7,12.5257]
[1744563872620,15.0928151,1597.1,1596.8,6.26246]
[1744563872782,7.77129151,1597.0,1596.6,6.26328]
[1744563872983,0.7602,1596.9,1596.5,6.26354]
[1744563873734,7.02256,1596.9,1596.6,6.26329]
[1744563874614,0.7602,1596.9,1596.6,12.52645]
[1744563874796,1.61332215,1596.9,1596.6,6.26316]
[1744563874998,6.2628,1596.8,1596.4,6.26396]
[1744563875211,7.02312,1596.7,1596.4,6.26396]
[1744563875520,19.58027,1596.7,1596.3,6.26423]
[1744563875819,13.31712,1596.7,1596.3,6.26423]
[1744563876023,14.648832,1596.7,1596.3,6.26423]
[1744563876210,8.385912,1596.7,1596.5,6.26347]
[1744563876406,0.7602,1596.7,1596.5,6.26347]
[1744563876606,9.17,1597.0,1596.8,6.26225]
[1744563876920,3.0,1597.0,1596.8,6.26225]
[1744563877489,3.0,1597.0,1596.8,12.52459]
[1744563877920,3.0,1597.0,1596.8,6.26225]
[1744563878720,7.03184,1597.1,1596.7,12.52558]
[1744563878891,3.0,1597.0,1596.7,12.52558]
[1744563879091,3.7702,1597.1,1596.8,6.26249]
[1744563879722,3.7702,1597.1,1596.8,6.26234]
[1744563880087,0.7702,1597.1,1596.8,12.5247]
[1744563880314,0.7702,1597.1,1596.8,6.26234]
[1744563880521,0.7702,1597.1,1596.9,6.262]
[1744563881692,6.294,1597.1,1596.9,6.262]
[1744563882106,6.294,1597.1,1596.9,7.514434]
[1744563882296,6.294,1597.1,1596.9,6.262]
[1744563882495,6.294,1597.1,1596.9,6.26194]
[1744563882702,6.294,1597.1,1597.0,6.26174]
[1744563882891,7.0216,1597.3,1597.0,6.26174]
[1744563883094,6.294,1597.2,1597.0,6.26174]
[1744563883590,7.055,1597.3,1597.0,12.52348]
[1744563884325,7.055,1597.3,1597.1,6.26126]
[1744563884708,7.055,1597.3,1597.0,6.26174]
[1744563884911,15.275227,1597.3,1596.9,6.2621]
[1744563885111,21.536077,1597.3,1596.9,12.52403]
[1744563885316,15.275227,1597.3,1596.9,12.52403]
[1744563885623,15.275227,1597.3,1597.0,6.26172]
[1744563886526,21.536017,1597.3,1596.9,6.26193]
[1744563886829,2.1536017,1597.2,1596.9,6.26193]
[1744563886999,8.4145517,1597.2,1596.9,6.26193]
[1744563887716,7.02252,1597.1,1596.6,6.26327]
[1744563887922,0.761,1597.1,1596.8,6.26223]
[1744563888225,0.761,1597.1,1596.8,12.52456]
[1744563888427,0.261,1597.1,1596.8,12.52456]
[1744563888631,0.261,1597.1,1596.8,6.26223]
[1744563888833,8.01624017,1597.1,1596.7,12.52556]
[1744563889010,8.01624017,1597.1,1596.8,6.26248]
[1744563890833,8.01624017,1597.1,1596.7,12.52549]
[1744563891003,8.01624017,1597.1,1596.7,6.26271]
[1744563891331,6.26175,1597.0,1596.7,6.26271]
[1744563891523,6.294,1596.9,1596.7,6.26271]
[1744563891737,6.294,1596.9,1596.7,12.52551]
[1744563892329,6.294,1596.9,1596.6,6.2633]
[1744563892530,7.02354,1596.8,1596.5,12.52719]
[1744563892734,7.02354,1596.8,1596.5,12.52714]
[1744563893641,7.02354,1596.8,1596.5,6.26357]
[1744563893842,7.02354,1596.8,1596.5,12.5271]
[1744563899453,0.761,1596.8,1596.6,6.26315]
[1744563899615,0.761,1596.8,1596.6,12.5263]
[1744563899927,7.0671,1596.9,1596.6,12.5263]
[1744563900134,7.0671,1596.9,1596.7,6.26291]
[1744563900534,13.32925,1596.9,1596.6,6.26315]
[1744563901044,6.294,1596.9,1596.7,6.26253]
[1744563901546,3.46252589,1597.2,1596.9,6.26202]
[1744563901547,16.32299,1597.2,1596.9,6.26202]
[1744563901947,13.32299,1597.2,1596.9,6.26202]
[1744563902749,13.32299,1597.2,1596.9,12.52399]
[1744563902917,13.32299,1597.2,1596.9,6.26197]
[1744563903116,6.294,1597.2,1597.0,6.26158]
[1744563903530,6.294,1597.2,1597.1,6.26134]
[1744563903952,6.294,1597.2,1597.0,6.26158]
[1744563904121,6.294,1597.2,1597.0,6.887738]
[1744563904329,6.294,1597.2,1597.0,7.705938]
[1744563905154,6.294,1597.2,1597.0,7.07978]
[1744563905665,66.26956,1597.3,1597.0,13.34138]
[1744563905955,66.26956,1597.3,1597.0,7.07978]
[1744563906145,66.26956,1597.3,1597.0,13.3414]
[1744563906351,6.261,1597.2,1596.9,6.26208]
[1744563906739,13.28545,1597.2,1596.8,6.26248]
[1744563906940,13.28545,1597.2,1596.8,12.52485]
[1744563907266,0.7633,1597.2,1597.0,6.2616]
[1744563908265,66.26961,1597.3,1597.0,6.2616]
[1744563908266,60.009,1597.3,1597.1,6.26134]
[1744563910376,0.7833,1597.4,1597.2,6.26095]
[1744563910583,0.02,1597.4,1597.3,6.26056]
[1744563910731,0.02,1597.4,1597.3,8.37581268]
[1744563911749,0.02,1597.4,1597.3,8.56619519]
[1744563911954,0.02,1597.4,1597.3,7.76569519]
[1744563912264,0.02,1597.4,1597.3,7.512711]
[1744563912964,0.02,1597.4,1597.3,11.267611]
[1744563913267,0.02,1597.4,1597.3,11.52040143]
[1744563914233,0.02,1597.4,1597.3,12.13298954]
[1744563914439,1e-05,1597.4,1597.3,12.13298907]
[1744563914638,0.3964526,1597.6,1597.5,7.01468]
[1744563914839,0.3964526,1597.6,1597.5,12.81048514]
[1744563915072,0.3964526,1597.6,1597.5,8.59493743]
[1744563915472,0.3964526,1597.6,1597.5,13.12585905]
[1744563915640,4.21240742,1597.7,1597.6,7.01428]
[1744563915840,4.21240742,1597.7,1597.6,10.56428]
[1744563916036,4.21240742,1597.7,1597.6,13.71944936]
[1744563916240,4.21240742,1598.2,1598.0,6.25782]
[1744563916440,4.21240742,1598.2,1598.0,6.25763]
[1744563916867,4.21240742,1598.2,1598.1,6.25743]
[1744563919867,4.21240742,1598.2,1598.0,6.25763]
[1744563920073,4.21240742,1598.2,1598.1,6.25743]
[1744563920274,4.21240742,1598.2,1598.0,7.589779]
[1744563921550,5.00980742,1598.2,1598.0,7.589779]
[1744563921754,5.00980742,1598.2,1598.0,6.25762]
[1744563921955,5.00980742,1598.2,1597.9,6.25815]
[1744563922156,11.26685742,1598.2,1597.8,6.25844]
[1744563922345,0.7974,1598.2,1597.9,6.25816]
[1744563922546,0.7974,1598.2,1598.0,6.25776]
[1744563922858,0.7974,1598.2,1597.9,6.25816]
[1744563923554,0.7974,1598.2,1597.9,12.5162]
[1744563923880,0.7974,1598.2,1598.0,6.25773]
[1744563924255,0.02,1598.4,1598.2,6.25703]
[1744563924455,0.02,1598.4,1598.1,6.2572]
[1744563924675,0.7974,1598.3,1598.1,6.2572]
[1744563924866,0.7974,1598.3,1598.1,6.31975853]
[1744563925060,0.02,1598.4,1598.1,6.25714]
[1744563925249,7.0574,1598.5,1598.2,6.25689]
[1744563925450,19.56958,1598.5,1598.1,6.25714]
[1744563925982,13.31346,1598.5,1598.1,12.51436]
[1744563926167,13.31346,1598.5,1598.2,6.25695]
[1744563926368,13.31346,1598.5,1598.1,6.25714]
[1744563926751,15.270357,1598.5,1598.1,6.25714]
[1744563926953,0.7674,1598.5,1598.2,6.25688]
[1744563927279,7.0564,1598.5,1598.0,1.327427]
[1744563927455,7.0564,1598.5,1598.3,6.25642]
[1744563928151,7.0564,1598.5,1598.3,12.51289]
[1744563928502,12.54463,1598.6,1598.3,1.25754514]
[1744563928705,18.80035,1598.6,1598.2,6.257]
[1744563929001,7.05344,1598.5,1598.1,12.51463]
[1744563929176,0.7974,1598.5,1598.2,12.51384]
[1744563929483,7.05327,1598.5,1598.2,6.25686]
[1744563929849,9.013048,1598.5,1598.2,6.25686]
[1744563930053,9.013048,1598.5,1598.1,12.51467]
[1744563930582,6.25638,1598.4,1598.0,6.25775]
[1744563930881,0.7974,1598.3,1598.0,12.51538]
[1744563931594,0.7974,1598.3,1598.1,6.60343946]
[1744563932090,0.7974,1598.3,1598.1,0.34608946]
[1744563932592,9.010108,1598.5,1598.1,6.60336946]
[1744563932892,2.754178,1598.5,1598.2,12.51365]
[1744563933292,2.754178,1598.5,1598.3,0.30611698]
[1744563933496,9.010048,1598.5,1598.3,0.30611698]
[1744563933878,0.7944,1598.5,1598.3,6.25663]
[1744563934063,0.7944,1598.5,1598.4,0.30611698]
[1744563934768,0.7944,1598.5,1598.3,6.25663]
[1744563934964,0.7944,1598.5,1598.4,0.30611698]
[1744563935172,0.7944,1598.5,1598.3,6.25638]
[1744563935384,7.0834,1598.6,1598.4,0.30611698]
[1744563935586,9.959783,1598.6,1598.3,6.25638]
[1744563935901,16.215273,1598.6,1598.5,0.30611698]
[1744563936074,16.215273,1598.6,1598.3,6.25638]
[1744563936403,16.215273,1598.6,1598.4,0.30611698]
[1744563936770,16.215273,1598.6,1598.3,6.25638]
[1744563936972,16.215273,1598.6,1598.5,0.30611698]
[1744563937267,16.215273,1598.6,1598.3,6.25638]
[1744563937473,16.215273,1598.6,1598.3,12.5129]
[1744563937673,16.215273,1598.6,1598.4,0.30527367]
[1744563938093,16.215273,1598.6,1598.3,12.5129]
[1744563938401,19.59462,1598.6,1598.3,6.25638]
[1744563938592,13.33889,1598.6,1598.4,0.30527367]
[1744563938792,13.33889,1598.6,1598.3,6.25638]
[1744563938992,7.04989,1598.6,1598.5,0.30527367]
[1744563939301,7.04989,1598.6,1598.3,12.51287]
[1744563939499,7.04989,1598.6,1598.5,0.30527367]
[1744563939699,8.680393,1598.6,1598.3,6.25638]
[1744563939869,7.04989,1598.6,1598.5,0.30527367]
[1744563940072,7.04989,1598.6,1598.3,6.25638]
[1744563940272,7.04989,1598.6,1598.5,0.30527367]
[1744563940503,13.30554,1598.6,1598.2,6.25687]
[1744563940800,6.25591,1598.5,1598.3,0.30527367]
[1744563941173,9.317004,1598.6,1598.3,0.30527367]
[1744563941674,7.04995,1598.6,1598.3,6.56179367]
[1744563941996,7.04995,1598.6,1598.3,0.30527367]
[1744563942197,6.25586,1598.5,1598.3,0.30527367]
[1744563943204,10.01765,1598.4,1598.3,0.30527367]
[1744563943516,13.27572,1598.2,1597.8,13.30682]
[1744563943716,6.2571,1598.2,1597.8,13.30682]
[1744563943918,12.62169,1598.3,1598.0,6.25777]
[1744563944119,18.87853,1598.3,1598.0,6.25777]
[1744563944419,12.62169,1598.3,1598.1,0.2514886]
[1744563944938,7.01843,1598.2,1597.9,6.25818]
[1744563945137,8.982442,1598.2,1597.8,6.25852]
[1744563945603,6.25749,1598.1,1597.8,6.25852]
[1744563946133,6.25843,1597.9,1597.6,6.2593]
[1744563946288,0.7614,1598.1,1597.3,12.62554]
[1744563946289,10.01896,1598.1,1597.7,6.25865]
[1744563946493,12.28979801,1598.1,1597.7,12.51739]
[1744563946721,18.54745801,1598.1,1597.7,6.25865]
[1744563946922,16.74917029,1598.1,1597.7,6.25865]
[1744563947526,12.51604,1598.0,1597.6,12.51858]
[1744563948217,10.49147029,1598.1,1597.7,6.25878]
[1744563948420,16.74916029,1598.1,1597.7,12.51759]
[1744563948716,12.51587,1598.0,1597.7,6.25878]
[1744563948909,12.51587,1598.0,1597.6,12.51876]
[1744563949427,6.25845,1597.9,1597.6,6.25938]
[1744563949922,6.25845,1597.9,1597.6,12.5186]
[1744563950128,6.25845,1597.9,1597.6,6.25922]
[1744563950500,6.25845,1597.9,1597.6,12.51844]
[1744563950727,6.25845,1597.9,1597.6,6.25922]
[1744563951632,6.25783,1598.0,1597.6,6.25921]
[1744563951820,14.35825863,1598.0,1597.6,6.25921]
[1744563952025,6.25822,1597.9,1597.6,6.25921]
[1744563952324,13.3153,1597.9,1597.6,6.25921]
[1744563952505,7.05682,1597.9,1597.6,6.25921]
[1744563952905,7.05682,1597.9,1597.5,12.51934]
[1744563953104,14.20534386,1597.9,1597.5,12.51934]
[1744563953634,20.57134386,1597.9,1597.5,12.51934]
[1744563953932,14.31274386,1597.9,1597.6,6.25935]
[1744563955535,14.31274386,1597.9,1597.6,12.51858]
[1744563955707,14.31274386,1597.9,1597.6,6.25923]
[1744563955906,13.42282,1597.9,1597.6,6.25923]
[1744563956704,19.68136,1597.9,1597.5,7.06491]
[1744563956904,19.68136,1597.9,1597.5,6.25961]
[1744563957305,6.2586,1597.8,1597.5,6.25961]
[1744563957606,7.05762,1597.7,1597.6,0.2407525]
[1744563957805,0.7986,1597.7,1597.4,12.5201]
[1744563958005,0.7986,1597.7,1597.6,0.24253787]
[1744563958234,0.7986,1597.7,1597.5,6.25977]
[1744563958435,0.7986,1597.7,1597.6,0.24253787]
[1744563960036,0.7986,1597.7,1597.6,6.50191787]
[1744563960215,19.68127,1597.9,1597.6,0.24253787]
[1744563960414,13.42288,1597.9,1597.6,6.50169787]
[1744563960606,7.1646,1597.9,1597.6,6.50169787]
[1744563960808,7.1646,1597.9,1597.6,12.76095787]
[1744563961217,7.1646,1597.9,1597.6,0.24253787]
[1744563961542,7.1646,1597.9,1597.6,6.50159787]
[1744563961744,13.42285,1597.9,1597.6,6.50159787]
[1744563962251,7.1646,1597.9,1597.6,12.76085787]
[1744563962546,13.42282,1597.9,1597.6,6.50159787]
[1744563963742,19.68119,1597.9,1597.6,6.50159787]
[1744563964245,13.42282,1597.9,1597.6,12.76085787]
[1744563964445,7.1646,1597.9,1597.6,12.76085787]
[1744563965846,13.42287,1597.9,1597.6,6.50159787]
[1744563966135,21.649359,1597.9,1597.6,6.50159787]
[1744563966538,21.649359,1597.9,1597.6,0.24253787]
[1744563967443,21.649319,1597.9,1597.6,0.24253787]
[1744563968557,15.390949,1597.9,1597.6,6.50184787]
[1744563968767,13.42287,1597.9,1597.6,12.76115787]
[1744563969261,19.68127,1597.9,1597.6,6.50184787]
[1744563969456,13.42287,1597.9,1597.6,6.50184787]
[1744563969658,19.68124,1597.9,1597.6,6.50184787]
[1744563969864,13.42287,1597.9,1597.6,6.50184787]
[1744563970031,7.1646,1597.9,1597.6,12.76111787]
[1744563970232,6.366,1597.9,1597.7,6.25899]
[1744563970426,6.366,1597.9,1597.7,7.32204654]
[1744563975845,6.366,1597.9,1597.7,1.06305654]
[1744563976030,6.366,1597.9,1597.7,0.8179]
[1744563976237,6.366,1597.9,1597.8,0.24515654]
[1744563979367,14.512396,1597.9,1597.8,0.24515654]
[1744563979571,6.25869,1597.8,1597.5,7.06237]
[1744563979734,6.25869,1597.8,1597.6,0.22480775]
[1744563979941,12.51746,1597.8,1597.6,0.22480775]
[1744563980469,6.25926,1597.7,1597.4,0.8026]
[1744563980776,6.25953,1597.6,1597.3,7.0631]
[1744563980940,6.25953,1597.6,1597.3,8.395498]
[1744563981140,7.01188,1597.5,1597.4,0.2251645]
[1744563981476,13.27204,1597.5,1597.1,7.06384]
[1744563981675,6.26028,1597.4,1597.1,7.06384]
[1744563981970,12.5207,1597.4,1597.0,13.3259]
[1744563982144,6.26028,1597.4,1597.0,13.3259]
[1744563982350,6.26028,1597.4,1597.1,6.26134]
[1744563983876,12.52145,1597.3,1597.0,0.8026]
[1744563984735,6.26058,1597.3,1597.0,0.8026]
[1744563985474,6.26058,1597.3,1597.0,7.06433]
[1744563986377,13.81531339,1597.5,1597.0,0.8026]
[1744563986678,3.0,1597.6,1597.3,12.52066]
[1744563987446,19.51415,1597.7,1597.4,6.26001]
[1744563987776,6.25861,1597.8,1597.5,12.5192]
[1744563987975,6.333,1597.9,1597.8,6.2586]
[1744563988547,6.333,1597.9,1597.8,6.48757066]
[1744563989384,6.333,1597.9,1597.8,7.84247173]
[1744563989547,4.21240742,1598.0,1597.8,14.10090173]
[1744563990171,4.21240742,1598.0,1597.8,7.84230173]
[1744563990383,6.25784,1598.0,1597.8,0.22897066]
[1744563990748,6.25784,1598.0,1597.7,6.25883]
[1744563990944,6.25784,1598.0,1597.6,7.0619]
[1744563991174,6.25784,1598.0,1597.8,0.22897066]
[1744563991175,6.25827,1597.9,1597.8,0.22897066]
[1744563991380,6.25827,1597.9,1597.6,7.06186]
[1744563991681,6.25827,1597.9,1597.6,8.393996]
[1744563991850,6.2586,1597.8,1597.7,0.22897066]
[1744563992276,7.01177,1597.9,1597.7,0.22897066]
[1744563992603,0.023282,1700.0,1597.7,0.22897066]
[1744563992806,0.023282,1700.0,1597.7,6.38897066]
[1744563992807,12.5163,1598.0,1597.7,6.38897066]
[1744563992958,6.20815,1598.0,1597.7,6.38897066]
[1744563993454,6.20815,1598.0,1597.7,12.64783066]
[1744563994886,6.25824,1597.9,1597.7,6.38897066]
[1744563995055,6.23824,1597.9,1597.7,6.38897066]
[1744563995257,6.21824,1597.9,1597.7,6.38897066]
[1744563995663,6.97174,1597.9,1597.7,6.38897066]
[1744563997251,3.0,1598.1,1597.7,20.28821773]
[1744563997454,3.0,1598.1,1597.8,6.25848]
[1744563997772,3.0,1598.1,1597.8,6.48709391]
[1744563998352,3.0,1598.1,1597.8,12.74557391]
[1744563998558,6.25773,1598.1,1597.8,0.22861391]
[1744563998760,6.25773,1598.1,1597.8,6.48718391]
[1744563998990,6.25773,1598.1,1597.8,7.24488391]
[1744563999191,6.25773,1598.1,1597.8,9.97529501]
[1744564001388,0.7836,1598.2,1597.9,6.25803]